bitfinex-derivatives/quotes_SOLF0:USTF0_20260108
["timestamp","ask_amount","ask_price","bid_price","bid_amount"]
[1767862816391,0.32883423,135.25,135.17,97.42305168]
[1767862816987,0.32883423,135.25,135.18,6.6661]
[1767862822288,0.32883423,135.25,135.19,6.6655]
[1767862823991,0.32883423,135.25,135.2,6.6653]
[1767862824588,10.26718591,135.27,135.2,6.6653]
[1767862824788,6.99063423,135.27,135.2,6.6653]
[1767862824985,0.32883423,135.27,135.21,6.6647]
[1767862825189,0.32883423,135.27,135.17,194.45955168]
[1767862825690,6.99073423,135.27,135.19,6.6653]
[1767862826092,0.32883423,135.26,135.17,194.45955168]
[1767862827599,0.32883423,135.26,135.2,6.6653]
[1767862828495,3.60538591,135.28,135.21,6.6647]
[1767862828695,0.32883423,135.28,135.21,3.27655168]
[1767862829094,0.32883423,135.28,135.22,6.6642]
[1767862830102,0.32883423,135.3,135.23,6.6638]
[1767862831489,0.32883423,135.3,135.23,3.27655168]
[1767862831696,0.32883423,135.36,135.27,3.27655168]
[1767862831895,0.32883423,135.36,135.29,3.27655168]
[1767862832192,0.32883423,135.36,135.28,6.6613]
[1767862832796,0.32883423,135.36,135.29,6.6608]
[1767862833003,0.32883423,135.36,135.29,3.27655168]
[1767862834601,6.657,135.37,135.3,6.6602]
[1767862834896,6.98103297,135.37,135.3,6.6602]
[1767862835102,90.71655168,135.39,135.28,87.44]
[1767862835103,6.98153297,135.36,135.28,87.44]
[1767862835305,0.32403297,135.35,135.28,87.44]
[1767862836505,0.32403297,135.35,135.28,94.1012]
[1767862838108,0.32403297,135.35,135.29,3.27655168]
[1767862838504,6.6575,135.36,135.29,9.93735168]
[1767862838811,6.6579,135.35,135.29,3.27655168]
[1767862839700,0.32403297,135.33,135.26,87.4]
[1767862840097,6.6585,135.34,135.27,3.27655168]
[1767862840704,6.6585,135.34,135.26,87.4]
[1767862841405,6.6585,135.34,135.27,6.6617]
[1767862841704,6.6577,135.36,135.26,87.4]
[1767862842008,6.6577,135.36,135.27,5.10514357]
[1767862842604,6.98083297,135.38,135.27,5.10514357]
[1767862843005,0.32403297,135.37,135.27,5.10514357]
[1767862843606,6.98093297,135.37,135.3,6.6603]
[1767862847311,0.32403297,135.37,135.28,103.6155]
[1767862848612,0.32403297,135.37,135.31,6.6594]
[1767862848911,0.32403297,135.39,135.29,103.6137]
[1767862849211,0.32403297,135.39,135.29,108.71884357]
[1767862849615,6.97993297,135.39,135.32,6.6591]
[1767862852119,0.32403297,135.39,135.33,6.6587]
[1767862854510,6.98013297,135.39,135.3,87.38]
[1767862854718,6.98013297,135.39,135.31,6.6594]
[1767862854907,6.98013297,135.39,135.3,87.38]
[1767862855107,0.32403297,135.39,135.3,87.38]
[1767862856017,0.32403297,135.39,135.32,6.6592]
[1767862856018,6.6565,135.38,135.32,6.6592]
[1767862856617,6.98053297,135.38,135.31,6.6598]
[1767862857517,6.98053297,135.38,135.3,87.38]
[1767862857518,0.32403297,135.41,135.3,87.38]
[1767862858323,103.89353297,135.35,135.23,5.67407357]
[1767862858617,0.32403297,135.33,135.23,87.92893]
[1767862859609,6.6598,135.32,135.25,6.6627]
[1767862860918,0.32403297,135.33,135.26,6.6622]
[1767862861118,108.64564357,135.39,135.26,103.636]
[1767862861423,0.32403297,135.38,135.27,87.38]
[1767862862622,6.98083297,135.38,135.28,103.6186]
[1767862863707,6.98083297,135.38,135.31,6.6598]
[1767862865523,0.32321849,135.36,135.25,130.99794357]
[1767862865724,0.32321849,135.36,135.26,87.38]
[1767862866025,6.6579,135.35,135.29,6.6608]
[1767862866224,6.98111849,135.35,135.26,87.38]
[1767862866728,6.98111849,135.35,135.29,6.6608]
[1767862869220,6.98111849,135.35,135.27,94.0216]
[1767862869527,0.32321849,135.33,135.27,94.0216]
[1767862869822,0.32321849,135.33,135.26,6.6623]
[1767862870622,6.98221849,135.33,135.26,6.6623]
[1767862872124,6.98221849,135.33,135.27,6.6618]
[1767862872936,6.98271849,135.32,135.25,6.6624]
[1767862874227,0.32321849,135.31,135.24,6.6633]
[1767862874431,0.32321849,135.31,135.23,0.56893]
[1767862875526,6.6613,135.29,135.23,0.56893]
[1767862875932,0.32321849,135.31,135.23,0.56893]
[1767862876133,6.98361849,135.3,135.23,7.23273]
[1767862876329,0.32321849,135.29,135.23,0.56893]
[1767862876932,0.32321849,135.28,135.23,0.56893]
[1767862878335,6.98461849,135.28,135.23,0.56893]
[1767862879137,0.32321849,135.28,135.23,0.56893]
[1767862879348,6.98401849,135.3,135.23,0.56893]
[1767862880536,6.98401849,135.3,135.23,7.23263]
[1767862880743,6.6608,135.3,135.23,7.23263]
[1767862881337,6.98401849,135.3,135.23,7.23263]
[1767862885548,0.32321849,135.3,135.24,6.663]
[1767862887539,0.32321849,135.3,135.25,6.6627]
[1767862889045,6.98261849,135.32,135.25,6.6627]
[1767862889842,0.32321849,135.32,135.26,6.6622]
[1767862892750,94.0589,135.33,135.26,6.6622]
[1767862892948,5.10514357,135.35,135.23,87.96893]
[1767862892949,6.6583,135.35,135.24,108.75324357]
[1767862893138,6.6583,135.35,135.25,103.6435]
[1767862893341,6.6583,135.35,135.25,191.0435]
[1767862893855,6.6583,135.35,135.28,6.6613]
[1767862895844,6.6583,135.35,135.29,6.6608]
[1767862896443,0.32039449,135.36,135.3,6.6603]
[1767862897144,6.6573,135.37,135.3,6.6603]
[1767862897552,0.32039449,135.38,135.28,108.72174357]
[1767862898757,0.32039449,135.36,135.27,191.0247]
[1767862899054,0.32039449,135.36,135.27,87.4]
[1767862899655,0.32039449,135.35,135.29,6.6607]
[1767862902258,6.6575,135.36,135.29,6.6607]
[1767862903251,6.6569,135.38,135.29,3.26664797]
[1767862903757,6.6569,135.38,135.3,87.38]
[1767862904659,6.6569,135.38,135.31,6.6597]
[1767862904962,0.32039449,135.39,135.3,87.38]
[1767862905256,97.30254797,135.4,135.33,6.6588]
[1767862905462,97.30254797,135.4,135.31,3.26664797]
[1767862905662,94.0359,135.4,135.31,3.26664797]
[1767862906362,6.97629449,135.4,135.31,3.26664797]
[1767862906563,6.97629449,135.4,135.33,6.6589]
[1767862906958,0.32039449,135.39,135.33,6.6589]
[1767862907163,0.32039449,135.39,135.28,103.6179]
[1767862907164,3.26664797,135.34,135.25,0.31045565]
[1767862907358,3.26664797,135.32,135.25,0.31045565]
[1767862907663,3.26664797,135.32,135.23,104.22563]
[1767862907664,0.32039449,135.31,135.23,0.87938565]
[1767862907961,3.26664797,135.3,135.23,0.87938565]
[1767862908359,3.58704246,135.3,135.23,0.87938565]
[1767862908665,3.58704246,135.3,135.23,7.54298565]
[1767862908864,0.32039449,135.3,135.24,0.31045565]
[1767862909158,3.26664797,135.3,135.24,0.31045565]
[1767862909755,10.24754246,135.3,135.24,0.31045565]
[1767862909956,0.32039449,135.29,135.23,0.56893]
[1767862911558,6.98129449,135.29,135.23,0.56893]
[1767862913267,6.98129449,135.29,135.23,0.87938565]
[1767862913863,0.32039449,135.29,135.23,0.87938565]
[1767862918966,0.32039449,135.29,135.23,7.54308565]
[1767862919165,90.96704246,135.31,135.24,0.31045565]
[1767862921471,0.32039449,135.28,135.23,0.56893]
[1767862921659,3.58704246,135.27,135.19,0.31045565]
[1767862922368,190.9816,135.31,135.18,90.64664797]
[1767862922369,6.6614,135.28,135.21,0.3565964]
[1767862922966,7.0148957,135.28,135.21,0.3565964]
[1767862923170,6.6619,135.27,135.21,0.3565964]
[1767862925574,6.6619,135.27,135.21,7.0213964]
[1767862926073,7.03099092,135.27,135.21,7.0213964]
[1767862926274,0.36909092,135.26,135.19,0.34780951]
[1767862926471,3.26664797,135.25,135.19,0.34780951]
[1767862926672,3.63573889,135.26,135.19,0.34780951]
[1767862927672,0.36909092,135.25,135.19,7.01360951]
[1767862928065,0.36909092,135.25,135.16,0.34780951]
[1767862928379,87.4,135.28,135.17,6.6663]
[1767862928380,0.36909092,135.23,135.17,6.6663]
[1767862928878,6.6639,135.23,135.16,7.01500951]
[1767862929177,3.63573889,135.22,135.16,0.34780951]
[1767862929678,3.26664797,135.2,135.13,0.34780951]
[1767862929870,0.36909092,135.21,135.13,0.34780951]
[1767862930270,10.29973889,135.23,135.16,6.6672]
[1767862930775,7.03349092,135.22,135.15,0.34780951]
[1767862931170,0.36909092,135.21,135.15,0.34780951]
[1767862931580,0.36909092,135.21,135.15,7.01550951]
[1767862933682,3.63573889,135.25,135.17,0.34780951]
[1767862934080,0.36909092,135.24,135.17,0.34780951]
[1767862934283,6.6638,135.23,135.17,0.34780951]
[1767862934582,7.03289092,135.23,135.15,3.61445748]
[1767862934781,0.36909092,135.22,135.15,7.01540951]
[1767862935175,7.03339092,135.22,135.15,7.01540951]
[1767862938384,0.36909092,135.22,135.15,7.01540951]
[1767862938781,0.36909092,135.22,135.16,6.6672]
[1767862940176,6.6627,135.26,135.18,0.34780951]
[1767862940380,0.36909092,135.26,135.2,0.34780951]
[1767862940986,0.36909092,135.26,135.2,7.01290951]
[1767862941287,0.36909092,135.26,135.16,191.15]
[1767862941288,0.36909092,135.26,135.17,3.61445748]
[1767862941585,0.36909092,135.24,135.18,6.6658]
[1767862942087,0.36909092,135.24,135.17,3.61445748]
[1767862942088,0.36909092,135.24,135.17,0.34780951]
[1767862942279,3.26664797,135.25,135.17,0.34780951]
[1767862942280,7.03289092,135.23,135.17,0.34780951]
[1767862942486,7.03289092,135.23,135.16,94.1069]
[1767862942487,10.29953889,135.23,135.16,6.6669]
[1767862944280,7.03289092,135.23,135.16,6.6669]
[1767862944486,0.36909092,135.23,135.17,6.6667]
[1767862944685,87.44,135.26,135.18,0.34780951]
[1767862944686,0.36909092,135.26,135.18,0.34780951]
[1767862944887,7.03209092,135.25,135.18,0.34780951]
[1767862945191,0.36909092,135.24,135.18,0.34780951]
[1767862945490,0.36909092,135.23,135.16,7.01460951]
[1767862946688,7.03289092,135.23,135.16,7.01460951]
[1767862948282,0.36909092,135.23,135.17,6.6668]
[1767862949286,10.29903889,135.25,135.18,0.34780951]
[1767862949687,0.36909092,135.24,135.18,0.34780951]
[1767862949889,7.03239092,135.24,135.18,0.34780951]
[1767862952190,7.03239092,135.24,135.18,7.01400951]
[1767862953593,0.36909092,135.24,135.19,6.6658]
[1767862955591,6.6629,135.25,135.19,6.6658]
[1767862956491,0.39564375,135.3,135.2,0.40680904]
[1767862956696,0.39564375,135.29,135.2,0.40680904]
[1767862958590,7.05714375,135.28,135.21,6.6643]
[1767862958897,0.39564375,135.27,135.21,6.6643]
[1767862959194,7.05754375,135.27,135.21,6.6643]
[1767862959401,7.05754375,135.27,135.2,7.07200904]
[1767862959699,0.39564375,135.26,135.18,87.84680904]
[1767862960692,7.05804375,135.26,135.19,6.6658]
[1767862961196,7.05804375,135.26,135.2,6.6652]
[1767862961503,0.39564375,135.26,135.2,7.07200904]
[1767862962295,7.05694375,135.29,135.21,0.40680904]
[1767862962504,0.39564375,135.32,135.22,0.40680904]
[1767862963700,7.05544375,135.32,135.25,6.6627]
[1767862966401,6.6599,135.31,135.25,6.6627]
[1767862967203,7.05554375,135.31,135.25,6.6627]
[1767862968209,7.05554375,135.31,135.24,0.40680904]
[1767862968701,6.6604,135.3,135.24,0.40680904]
[1767862968911,0.39564375,135.29,135.23,6.6638]
[1767862969500,7.05654375,135.29,135.23,6.6638]
[1767862970804,7.05654375,135.29,135.22,6.664]
[1767862971312,7.05654375,135.29,135.22,7.07080904]
[1767862971806,0.39564375,135.28,135.22,0.40680904]
[1767862972007,0.39564375,135.28,135.2,87.82680904]
[1767862972616,0.39564375,135.28,135.2,0.40680904]
[1767862973701,7.05744375,135.27,135.2,7.07210904]
[1767862974518,6.6613,135.28,135.22,6.6642]
[1767862974717,6.6613,135.28,135.21,0.40680904]
[1767862975008,7.05694375,135.28,135.21,0.40680904]
[1767862975214,0.39564375,135.28,135.22,6.664]
[1767862977411,0.39564375,135.28,135.22,7.07080904]
[1767862977611,6.6608,135.29,135.23,7.07050904]
[1767862979224,6.6608,135.29,135.23,0.40680904]
[1767862979706,7.05644375,135.29,135.23,0.40680904]
[1767862979912,7.05644375,135.29,135.23,7.07040904]
[1767862980320,0.39564375,135.27,135.21,0.40680904]
[1767862980511,0.39564375,135.27,135.2,6.6653]
[1767862981021,0.39564375,135.25,135.15,0.40680904]
[1767862981315,0.39564375,135.23,135.15,0.40680904]
[1767862981515,0.39564375,135.21,135.13,6.6684]
[1767862981814,0.39564375,135.21,135.13,7.07520904]
[1767862982006,0.39564375,135.21,135.14,6.6681]
[1767862983118,0.39564375,135.21,135.15,7.08859178]
[1767862983813,0.39564375,135.21,135.15,0.42099178]
[1767862986221,6.6644,135.22,135.15,7.08869178]
[1767862988610,7.08997271,135.22,135.15,7.08869178]
[1767862988820,7.08997271,135.22,135.15,0.42099178]
[1767862989219,6.6648,135.21,135.15,0.42099178]
[1767862989722,7.08997271,135.22,135.15,7.08869178]
[1767862992221,6.6648,135.21,135.15,7.08869178]
[1767862996026,6.6648,135.21,135.15,0.42099178]
[1767862996321,6.6653,135.2,135.15,0.42099178]
[1767862996822,7.09037271,135.21,135.15,0.42099178]
[1767862998124,7.09097271,135.2,135.13,0.40722642]
[1767862999325,0.42557271,135.18,135.1,0.40722642]
[1767863000234,6.6659,135.19,135.11,0.40722642]
[1767863001330,0.42557271,135.2,135.13,7.07542642]
[1767863002622,7.09087271,135.2,135.13,7.07542642]
[1767863002822,0.42557271,135.2,135.13,0.40722642]
[1767863003826,7.09177271,135.19,135.13,0.40722642]
[1767863004027,0.42557271,135.19,135.13,0.40722642]
[1767863005131,6.6663,135.18,135.13,0.40722642]
[1767863005435,0.42557271,135.19,135.13,0.40722642]
[1767863006633,7.09137271,135.19,135.13,0.40722642]
[1767863010235,0.42557271,135.19,135.13,0.40722642]
[1767863010440,0.42557271,135.19,135.1,0.40722642]
[1767863011541,0.42557271,135.17,135.1,0.40722642]
[1767863011943,0.42557271,135.17,135.08,0.40722642]
[1767863013444,0.4569634,135.15,135.08,0.40722642]
[1767863013741,0.4569634,135.15,135.07,7.09534868]
[1767863014544,0.4569634,135.15,135.08,7.09514868]
[1767863014743,0.4569634,135.17,135.09,0.42394868]
[1767863015042,0.4569634,135.21,135.11,0.42394868]
[1767863015233,0.4569634,135.21,135.14,0.42394868]
[1767863015537,0.4569634,135.23,135.14,0.42394868]
[1767863016543,6.6644,135.22,135.15,6.6677]
[1767863016841,7.1213634,135.22,135.15,6.6677]
[1767863017143,87.48,135.25,135.14,0.42394868]
[1767863017144,7.1217634,135.21,135.14,0.42394868]
[1767863018646,0.4569634,135.23,135.15,0.42394868]
[1767863018835,0.4569634,135.25,135.15,0.42394868]
[1767863020134,0.4569634,135.25,135.18,0.42394868]
[1767863021348,7.1186634,135.28,135.2,0.42394868]
[1767863021549,0.4569634,135.3,135.2,0.42394868]
[1767863022546,0.4569634,135.29,135.22,6.6642]
[1767863022949,0.4569634,135.29,135.22,7.08814868]
[1767863023247,0.4569634,135.29,135.23,6.6637]
[1767863023551,0.4569634,135.29,135.23,0.42394868]
[1767863023740,0.4569634,135.29,135.2,0.42394868]
[1767863024548,7.1178634,135.29,135.21,7.08844868]
[1767863025050,0.4569634,135.29,135.22,0.42394868]
[1767863025452,0.4569634,135.29,135.22,7.08804868]
[1767863027554,6.6601,135.31,135.24,0.42394868]
[1767863027851,3.72718933,135.32,135.24,0.42394868]
[1767863027852,0.4569634,135.32,135.24,0.42394868]
[1767863028243,0.4569634,135.32,135.25,0.42394868]
[1767863028549,7.1163634,135.32,135.25,0.42394868]
[1767863030956,7.1163634,135.32,135.25,7.08674868]
[1767863031553,9.92892593,135.34,135.26,7.08614868]
[1767863031751,0.4569634,135.33,135.27,0.42394868]
[1767863032656,7.1158634,135.33,135.27,0.42394868]
[1767863032862,0.4569634,135.33,135.27,7.08564868]
[1767863033057,3.72718933,135.35,135.28,0.42394868]
[1767863033248,0.4569634,135.35,135.28,0.42394868]
[1767863033452,0.4569634,135.35,135.29,6.6608]
[1767863033659,0.4569634,135.37,135.29,0.42394868]
[1767863033851,0.4569634,135.37,135.31,0.42394868]
[1767863034658,0.4569634,135.37,135.31,7.08374868]
[1767863036266,3.72718933,135.4,135.32,7.08314868]
[1767863036564,3.72718933,135.4,135.32,5.98237053]
[1767863036767,0.4569634,135.39,135.32,5.98237053]
[1767863037563,7.1129634,135.39,135.32,5.98237053]
[1767863037962,0.4569634,135.39,135.33,6.6587]
[1767863040369,0.4569634,135.39,135.33,7.06240359]
[1767863040662,3.27022593,135.41,135.34,7.06354752]
[1767863041167,0.4569634,135.41,135.34,7.06354752]
[1767863041370,7.1119634,135.41,135.34,7.06354752]
[1767863041573,0.4569634,135.39,135.31,0.40677359]
[1767863041770,0.4569634,135.36,135.29,0.40677359]
[1767863042072,0.4569634,135.36,135.3,6.6602]
[1767863042265,0.4569634,135.36,135.3,7.06774338]
[1767863042465,0.4569634,135.36,135.28,7.07004401]
[1767863042666,3.72718933,135.36,135.28,7.07004401]
[1767863042864,3.72718933,135.36,135.29,0.40904401]
[1767863043264,0.46589592,135.35,135.26,0.40904401]
[1767863044171,0.46589592,135.35,135.28,0.41052538]
[1767863045765,7.12379592,135.35,135.28,0.41052538]
[1767863048977,7.12379592,135.35,135.28,7.07182538]
[1767863049773,0.45129427,135.34,135.26,6.6619]
[1767863050077,0.45129427,135.34,135.27,0.42061574]
[1767863050382,0.45129427,135.34,135.27,7.08241574]
[1767863051366,7.10969427,135.34,135.27,7.08241574]
[1767863051565,0.45129427,135.33,135.25,0.42330434]
[1767863051777,0.45129427,135.32,135.25,7.08570434]
[1767863052373,0.45129427,135.36,135.27,0.42463381]
[1767863052580,0.45129427,135.36,135.28,0.42463381]
[1767863052879,0.45129427,135.36,135.3,6.66]
[1767863053075,0.45129427,135.36,135.3,7.08463381]
[1767863053779,0.45129427,135.36,135.28,3.27022593]
[1767863053780,3.7215202,135.38,135.31,0.42593924]
[1767863053977,3.7215202,135.41,135.31,0.42593924]
[1767863054374,3.7215202,135.41,135.33,0.42593924]
[1767863054577,0.45129427,135.4,135.33,0.42593924]
[1767863055679,0.45129427,135.4,135.33,7.08483924]
[1767863056381,0.45129427,135.4,135.34,6.6584]
[1767863056776,7.10679427,135.4,135.33,0.42593924]
[1767863057378,0.45129427,135.4,135.33,7.08473924]
[1767863058685,7.10679427,135.4,135.33,7.08473924]
[1767863059983,0.45129427,135.4,135.34,6.6584]
[1767863061390,10.3759202,135.43,135.36,0.43465912]
[1767863061585,3.7215202,135.45,135.36,0.43465912]
[1767863061881,0.45129427,135.44,135.36,0.43465912]
[1767863062088,0.45129427,135.43,135.36,0.43465912]
[1767863063690,0.45129427,135.41,135.34,7.09617787]
[1767863064590,3.27022593,135.42,135.35,7.09712464]
[1767863064782,7.10569427,135.43,135.35,7.09712464]
[1767863064982,7.10569427,135.43,135.35,0.43932464]
[1767863066589,7.10569427,135.43,135.36,6.6573]
[1767863066777,7.10569427,135.43,135.35,0.43932464]
[1767863067084,7.10599427,135.42,135.35,0.43932464]
[1767863067282,3.7215202,135.42,135.34,6.6579]
[1767863067478,0.45129427,135.41,135.34,6.6579]
[1767863068588,7.10629427,135.41,135.34,6.6579]
[1767863068794,7.10629427,135.41,135.34,7.10168837]
[1767863070485,0.45129427,135.41,135.35,6.6579]
[1767863071891,0.45129427,135.41,135.35,7.10489972]
[1767863072189,7.11326206,135.43,135.35,7.10489972]
[1767863072390,0.45886206,135.42,135.35,7.10489972]
[1767863072589,7.11326206,135.42,135.35,7.10489972]
[1767863074986,6.6538,135.44,135.35,0.44699972]
[1767863075192,0.45886206,135.47,135.39,0.44522666]
[1767863075485,7.11136206,135.47,135.39,7.10102666]
[1767863075690,7.11136206,135.47,135.39,0.44522666]
[1767863076092,0.45886206,135.47,135.39,0.44522666]
[1767863076896,0.45886206,135.47,135.41,0.44522666]
[1767863077289,0.45886206,135.51,135.41,0.44522666]
[1767863077482,0.45886206,135.52,135.45,7.09822666]
[1767863078182,0.45886206,135.52,135.46,6.6525]
[1767863078792,0.45886206,135.52,135.47,6.6519]
[1767863078992,10.37768799,135.54,135.47,6.6519]
[1767863079194,7.10746206,135.54,135.47,6.6519]
[1767863080201,7.10796206,135.53,135.45,7.09772666]
[1767863080392,7.10796206,135.53,135.45,0.44522666]
[1767863080592,0.45886206,135.52,135.45,0.44522666]
[1767863081400,7.10736206,135.55,135.47,0.44522666]
[1767863081591,0.45886206,135.58,135.47,0.44522666]
[1767863081787,3.72908799,135.57,135.47,0.44522666]
[1767863081993,0.45886206,135.56,135.47,0.44522666]
[1767863082692,0.45886206,135.56,135.49,6.6509]
[1767863083196,7.10656206,135.56,135.49,6.6509]
[1767863083495,0.45886206,135.56,135.48,0.44522666]
[1767863083700,0.45886206,135.56,135.49,0.44522666]
[1767863084595,7.10656206,135.56,135.49,0.44522666]
[1767863085501,7.10656206,135.56,135.45,7.09782666]
[1767863085502,0.45886206,135.53,135.45,7.09782666]
[1767863085796,0.45886206,135.53,135.43,0.44522666]
[1767863085987,3.27022593,135.52,135.43,0.44522666]
[1767863086194,0.45886206,135.51,135.43,0.44522666]
[1767863086602,0.45886206,135.49,135.4,0.44522666]
[1767863086803,0.45886206,135.49,135.41,0.44522666]
[1767863087501,0.45886206,135.49,135.42,7.09952666]
[1767863088893,6.6508,135.5,135.43,0.44522666]
[1767863089093,0.45886206,135.52,135.43,7.09902666]
[1767863090602,6.6501,135.51,135.43,7.09902666]
[1767863091102,6.6506,135.5,135.43,7.09902666]
[1767863093199,0.45886206,135.51,135.43,7.09902666]
[1767863093810,7.10896206,135.51,135.43,7.09902666]
[1767863094910,0.45886206,135.5,135.43,7.09902666]
[1767863095912,0.45886206,135.5,135.43,6.6538]
[1767863096113,0.45886206,135.49,135.41,6.6545]
[1767863096513,7.11036206,135.48,135.41,6.6545]
[1767863097319,0.45886206,135.48,135.42,6.6544]
[1767863098519,0.45886206,135.48,135.4,7.10022666]
[1767863098712,0.45886206,135.48,135.41,0.44522666]
[1767863099120,0.45886206,135.48,135.41,7.09992666]
[1767863099914,0.45886206,135.48,135.41,0.44522666]
[1767863100115,0.45886206,135.48,135.39,0.44522666]
[1767863100513,0.45886206,135.48,135.4,0.46767509]
[1767863101020,0.46825859,135.46,135.37,104.01307509]
[1767863101220,0.46825859,135.45,135.35,0.46767509]
[1767863101521,7.12175859,135.44,135.37,6.6569]
[1767863101722,0.46825859,135.43,135.37,6.6569]
[1767863102022,7.12235859,135.43,135.35,7.12517509]
[1767863102316,7.12235859,135.43,135.35,0.46767509]
[1767863102525,0.48737739,135.42,135.32,0.46454997]
[1767863102821,0.48737739,135.39,135.33,6.6586]
[1767863103022,0.48737739,135.39,135.3,0.46454997]
[1767863104020,0.48737739,135.39,135.31,6.6595]
[1767863105427,7.14387739,135.38,135.31,6.6595]
[1767863106631,7.14387739,135.38,135.3,0.46454997]
[1767863107520,0.48737739,135.38,135.31,7.12434997]
[1767863107712,0.48737739,135.38,135.31,0.46454997]
[1767863108522,0.48737739,135.38,135.32,6.6593]
[1767863109222,0.48737739,135.4,135.33,6.6585]
[1767863109420,7.14197739,135.42,135.34,0.46454997]
[1767863109629,0.48737739,135.42,135.34,0.46454997]
[1767863110521,0.48737739,135.42,135.35,6.6578]
[1767863111923,0.48737739,135.42,135.36,6.6573]
[1767863112222,12.23349589,135.45,135.36,0.46454997]
[1767863112423,7.14077739,135.45,135.36,0.46454997]
[1767863113230,0.48737739,135.44,135.36,0.46454997]
[1767863113534,0.48737739,135.44,135.37,6.6568]
[1767863115922,0.48737739,135.44,135.37,7.12134997]
[1767863116128,0.48737739,135.44,135.38,6.6561]
[1767863116524,0.48737739,135.44,135.34,0.46454997]
[1767863116824,0.48737739,135.42,135.34,7.12244997]
[1767863117827,0.48737739,135.41,135.34,7.12244997]
[1767863118827,6.654,135.43,135.36,0.46454997]
[1767863119031,0.48737739,135.47,135.36,0.46454997]
[1767863120532,6.6534,135.45,135.38,0.46454997]
[1767863121432,7.14077739,135.45,135.38,0.46454997]
[1767863121632,0.48737739,135.44,135.35,0.46454997]
[1767863121837,0.48737739,135.44,135.36,6.6572]
[1767863122829,7.14127739,135.44,135.36,7.12174997]
[1767863124029,7.14127739,135.44,135.37,6.6567]
[1767863124238,7.14037739,135.46,135.38,0.46454997]
[1767863124535,0.48737739,135.46,135.38,0.46454997]
[1767863125231,0.48737739,135.46,135.39,6.6558]
[1767863125428,0.48737739,135.46,135.38,0.46454997]
[1767863125834,0.48737739,135.44,135.38,0.46454997]
[1767863127537,7.14097739,135.44,135.38,0.46454997]
[1767863127929,0.48737739,135.44,135.38,0.46454997]
[1767863128336,0.48737739,135.44,135.38,7.12084997]
[1767863129940,0.48737739,135.44,135.38,0.46454997]
[1767863130834,7.14087739,135.44,135.32,116.9053]
[1767863131040,0.48737739,135.44,135.35,0.46454997]
[1767863132535,6.654,135.43,135.36,6.6574]
[1767863132845,0.48737739,135.44,135.36,0.4915752]
[1767863133145,7.14087739,135.44,135.37,6.6569]
[1767863134244,7.14087739,135.44,135.37,7.1484752]
[1767863134745,0.48737739,135.44,135.38,7.1478752]
[1767863134946,0.48737739,135.44,135.38,0.4915752]
[1767863135633,7.16657215,135.46,135.38,0.4915752]
[1767863136546,7.16657215,135.46,135.39,6.6558]
[1767863136747,0.51367215,135.46,135.39,7.1473752]
[1767863137050,0.51367215,135.51,135.39,0.4915752]
[1767863137246,6.6511,135.49,135.41,0.4915752]
[1767863137445,7.16477215,135.49,135.41,0.4915752]
[1767863138439,7.16477215,135.49,135.43,6.6539]
[1767863138641,0.51367215,135.49,135.43,0.4915752]
[1767863138949,0.51367215,135.51,135.43,0.4915752]
[1767863139148,0.51367215,135.5,135.43,0.4915752]
[1767863139935,0.51367215,135.49,135.43,0.4915752]
[1767863140444,0.51367215,135.49,135.43,7.1454752]
[1767863140744,0.51367215,135.49,135.39,0.4915752]
[1767863140948,0.51367215,135.47,135.39,0.4915752]
[1767863142256,7.16447215,135.5,135.4,0.4915752]
[1767863142643,0.51367215,135.49,135.4,0.4915752]
[1767863143547,0.51367215,135.49,135.42,6.6543]
[1767863143750,7.16477215,135.49,135.42,6.6543]
[1767863144048,0.51367215,135.48,135.4,0.4915752]
[1767863144454,0.51367215,135.46,135.4,0.4915752]
[1767863144659,0.51367215,135.46,135.37,0.4915752]
[1767863146450,0.51367215,135.45,135.37,7.1479752]
[1767863146645,0.51367215,135.45,135.37,0.4915752]
[1767863147756,7.16667215,135.45,135.38,6.6564]
[1767863149257,0.51367215,135.44,135.38,6.6564]
[1767863149557,0.51367215,135.43,135.38,6.6564]
[1767863151654,3.26223082,135.42,135.38,6.6564]
[1767863151854,3.77590297,135.42,135.36,6.657]
[1767863152050,3.77590297,135.42,135.35,0.4915752]
[1767863152658,3.77590297,135.42,135.37,6.6569]
[1767863154162,3.26223082,135.4,135.35,0.4915752]
[1767863156455,7.16877215,135.41,135.35,0.4915752]
[1767863156654,3.26223082,135.39,135.35,0.4915752]
[1767863157264,7.16877215,135.41,135.35,0.4915752]
[1767863157564,3.26223082,135.39,135.35,7.1494752]
[1767863161672,3.26223082,135.39,135.35,6.6579]
[1767863163571,3.78425066,135.39,135.33,7.1500752]
[1767863163773,0.52201984,135.38,135.31,0.47310303]
[1767863164676,0.52201984,135.36,135.28,0.47310303]
[1767863164967,0.52201984,135.36,135.29,0.47310303]